[Event "GrandPrix_30.05"]
[Site "Chess.com"]
[Date "2020.05.30"]
[Round "3"]
[White "bsnsun"]
[Black "sahidi"]
[Result "0-1"]
[WhiteElo "1932"]
[BlackElo "2235"]
[TimeControl "600+2"]
[EndTime "9:27:04 PDT"]
[Termination "sahidi won by resignation"]

1. Nf3 {[%clk 0:10:01.9]} 1... Nf6 {[%clk 0:10:00.2]} 2. c4 {[%clk 0:10:02.4]}
2... c5 {[%clk 0:09:59.1]} 3. Nc3 {[%clk 0:10:02.7]} 3... Nc6 {[%clk 0:09:59.6]}
4. g3 {[%clk 0:10:03.3]} 4... g6 {[%clk 0:09:59.8]} 5. Bg2 {[%clk 0:10:04]} 5...
Bg7 {[%clk 0:09:59.6]} 6. a3 {[%clk 0:10:04.9]} 6... O-O {[%clk 0:09:59.8]} 7.
O-O {[%clk 0:10:03.5]} 7... d5 {[%clk 0:09:57.5]} 8. cxd5 {[%clk 0:09:56.6]}
8... Nxd5 {[%clk 0:09:58.2]} 9. Qc2 {[%clk 0:09:48.1]} 9... Nb6 {[%clk 0:09:48]}
10. d3 {[%clk 0:09:45]} 10... Bf5 {[%clk 0:09:45.3]} 11. Ne4 {[%clk 0:09:02]}
11... Rc8 {[%clk 0:09:34.5]} 12. Bg5 {[%clk 0:08:52.7]} 12... Nd7 {[%clk
0:09:03.3]} 13. Qd2 {[%clk 0:08:39.8]} 13... Bxe4 {[%clk 0:08:56.6]} 14. dxe4
{[%clk 0:08:39.2]} 14... Nde5 {[%clk 0:08:57.7]} 15. Nxe5 {[%clk 0:07:57.2]}
15... Qxd2 {[%clk 0:08:54.5]} 16. Bxd2 {[%clk 0:07:57.8]} 16... Bxe5 {[%clk
0:08:55.4]} 17. Rab1 {[%clk 0:07:54.4]} 17... Rfd8 {[%clk 0:08:56.1]} 18. Rfd1
{[%clk 0:07:50.6]} 18... b5 {[%clk 0:08:49.9]} 19. f4 {[%clk 0:07:46.4]} 19...
Bg7 {[%clk 0:08:43.6]} 20. e5 {[%clk 0:07:45.7]} 20... e6 {[%clk 0:08:38.4]} 21.
Bc3 {[%clk 0:06:58.3]} 21... Nd4 {[%clk 0:08:12.2]} 22. Kf2 {[%clk 0:06:51.4]}
22... Bf8 {[%clk 0:08:12.1]} 23. Ba5 {[%clk 0:05:44]} 23... Re8 {[%clk
0:08:05.8]} 24. e3 {[%clk 0:05:35.7]} 24... Nb3 {[%clk 0:08:05]} 25. Be1 {[%clk
0:05:36.2]} 25... Red8 {[%clk 0:07:59.1]} 26. Be4 {[%clk 0:05:19.1]} 26... a5
{[%clk 0:07:50.8]} 27. Ke2 {[%clk 0:03:54]} 27... c4 {[%clk 0:07:45]} 28. Rxd8
{[%clk 0:03:34]} 28... Rxd8 {[%clk 0:07:42.8]} 29. Rd1 {[%clk 0:03:35.3]} 29...
Rxd1 {[%clk 0:07:41.7]} 30. Kxd1 {[%clk 0:03:34.8]} 30... Bc5 {[%clk 0:07:39.6]}
31. Bc6 {[%clk 0:02:58.6]} 31... b4 {[%clk 0:07:39.1]} 32. axb4 {[%clk
0:02:46.9]} 32... axb4 {[%clk 0:07:38.7]} 33. Bb5 {[%clk 0:02:46.1]} 33... Na5
{[%clk 0:07:38.5]} 34. Bd2 {[%clk 0:02:40.1]} 34... Kf8 {[%clk 0:07:15.7]} 35.
g4 {[%clk 0:02:37.7]} 35... Ke7 {[%clk 0:07:14.3]} 36. h4 {[%clk 0:02:36.2]}
36... Kd8 {[%clk 0:07:09]} 37. h5 {[%clk 0:02:36.3]} 37... Be7 {[%clk
0:06:53.6]} 38. h6 {[%clk 0:02:22.4]} 38... Bf8 {[%clk 0:06:51.6]} 39. g5 {[%clk
0:02:22.5]} 39... Bc5 {[%clk 0:06:52.4]} 40. Kc2 {[%clk 0:02:21.2]} 40... Ke7
{[%clk 0:06:48.1]} 41. Ba6 {[%clk 0:02:13.2]} 41... Kd8 {[%clk 0:06:32.8]} 42.
Bb5 {[%clk 0:02:13.9]} 42... Be7 {[%clk 0:06:15.8]} 43. Ba6 {[%clk 0:02:02.7]}
43... Kc7 {[%clk 0:06:13.7]} 44. Bb5 {[%clk 0:02:03.8]} 44... c3 {[%clk
0:06:00.4]} 45. bxc3 {[%clk 0:02:03]} 45... b3+ {[%clk 0:06:01.5]} 46. Kb2
{[%clk 0:01:59.5]} 46... Kb6 {[%clk 0:06:02]} 47. c4 {[%clk 0:01:45]} 47... Bc5
{[%clk 0:06:00.8]} 48. Bc1 {[%clk 0:01:10]} 48... Nc6 {[%clk 0:05:32.8]} 49.
Kxb3 {[%clk 0:01:10.8]} 49... Kc7 {[%clk 0:05:30.4]} 50. Kc3 {[%clk 0:01:10.5]}
50... Kb6 {[%clk 0:05:23.8]} 51. Kd3 {[%clk 0:01:10.9]} 51... Kb7 {[%clk
0:05:23.3]} 52. Bb2 {[%clk 0:01:09.8]} 52... Be7 {[%clk 0:05:22.3]} 53. Ke4
{[%clk 0:01:10.8]} 53... Bc5 {[%clk 0:05:21.1]} 54. Bd4 {[%clk 0:01:09.5]} 54...
Bf8 {[%clk 0:05:19.6]} 55. Kd3 {[%clk 0:01:08.2]} 55... Ba3 {[%clk 0:05:13.2]}
56. Bc3 {[%clk 0:01:08.6]} 56... Bc5 {[%clk 0:05:10.4]} 57. e4 {[%clk
0:01:06.8]} 57... Ba3 {[%clk 0:05:08.4]} 58. Ke3 {[%clk 0:01:05.3]} 58... Bc1+
{[%clk 0:05:06.9]} 59. Kf3 {[%clk 0:01:06.5]} 59... Kb6 {[%clk 0:05:00.4]} 60.
Kg4 {[%clk 0:01:05.7]} 60... Kc5 {[%clk 0:04:58.6]} 61. f5 {[%clk 0:00:47.6]}
61... Be3 {[%clk 0:04:51.6]} 62. fxg6 {[%clk 0:00:38.4]} 62... fxg6 {[%clk
0:04:52.3]} 63. Ba6 {[%clk 0:00:40.1]} 63... Bd4 {[%clk 0:04:43.5]} 64. Bxd4+
{[%clk 0:00:28.1]} 64... Kxd4 {[%clk 0:04:44.4]} 65. Kf4 {[%clk 0:00:21.4]}
65... Nxe5 {[%clk 0:04:42.4]} 66. c5 {[%clk 0:00:19]} 66... Nc6 {[%clk
0:04:42.3]} 67. Bb7 {[%clk 0:00:17.3]} 67... e5+ {[%clk 0:04:37.9]} 68. Kf3
{[%clk 0:00:15.5]} 68... Kxc5 {[%clk 0:04:35.7]} 69. Bc8 {[%clk 0:00:14.1]}
69... Nd4+ {[%clk 0:04:28.1]} 70. Kg4 {[%clk 0:00:14]} 70... Kd6 {[%clk
0:04:27.4]} 71. Bb7 {[%clk 0:00:10.3]} 71... Nc6 {[%clk 0:04:17.4]} 72. Ba8
{[%clk 0:00:09.4]} 72... Kc7 {[%clk 0:04:10]} 73. Kg3 {[%clk 0:00:10.2]} 73...
Nb4 {[%clk 0:04:04.4]} 74. Kf3 {[%clk 0:00:09.3]} 74... Kd6 {[%clk 0:03:49.6]}
75. Ke3 {[%clk 0:00:09.5]} 75... Nc2+ {[%clk 0:03:47.7]} 76. Kf3 {[%clk
0:00:10.7]} 76... Nd4+ {[%clk 0:03:44.8]} 77. Kg4 {[%clk 0:00:11.9]} 77... Nc6
{[%clk 0:03:44.1]} 78. Kg3 {[%clk 0:00:09.3]} 78... Ne7 {[%clk 0:03:41.4]} 79.
Kf2 {[%clk 0:00:09.5]} 79... Kc5 {[%clk 0:03:36.6]} 80. Kf3 {[%clk 0:00:10]}
80... Nc6 {[%clk 0:03:23.9]} 81. Ke3 {[%clk 0:00:07.7]} 81... Kd6 {[%clk
0:03:17.2]} 82. Bb7 {[%clk 0:00:07.3]} 82... Nb4 {[%clk 0:03:09.2]} 83. Bc8
{[%clk 0:00:04.2]} 83... Ke7 {[%clk 0:03:05]} 84. Bb7 {[%clk 0:00:04.6]} 84...
Nc2+ {[%clk 0:03:01.7]} 85. Kf3 {[%clk 0:00:05.5]} 85... Nd4+ {[%clk 0:03:02.6]}
86. Kg4 {[%clk 0:00:06.9]} 86... Kf8 {[%clk 0:03:01.4]} 87. Bd5 {[%clk
0:00:07.8]} 87... Ne2 {[%clk 0:02:53.5]} 88. Kf3 {[%clk 0:00:08]} 88... Nf4
{[%clk 0:02:54.3]} 89. Bc4 {[%clk 0:00:08.9]} 89... Nh3 {[%clk 0:02:51.6]} 90.
Kg4 {[%clk 0:00:09]} 90... Nf4 {[%clk 0:02:52.5]} 91. Kg3 {[%clk 0:00:10.2]}
91... Nh5+ {[%clk 0:02:51.3]} 92. Kh4 {[%clk 0:00:09.6]} 92... Nf4 {[%clk
0:02:52]} 93. Kg4 {[%clk 0:00:10.9]} 93... Ng2 {[%clk 0:02:49.7]} 94. Kf3 {[%clk
0:00:11.3]} 94... Nf4 {[%clk 0:02:48.6]} 95. Bb3 {[%clk 0:00:09]} 95... Nh3
{[%clk 0:02:45.7]} 96. Kg4 {[%clk 0:00:09.7]} 96... Nf4 {[%clk 0:02:45.8]} 97.
Bc4 {[%clk 0:00:10.3]} 97... Ng2 {[%clk 0:02:44]} 98. Be6 {[%clk 0:00:10.2]}
98... Nf4 {[%clk 0:02:41.7]} 99. Bd7 {[%clk 0:00:09.6]} 99... Ke7 {[%clk
0:02:40.7]} 100. Ba4 {[%clk 0:00:09.8]} 100... Ne6 {[%clk 0:02:24.7]} 101. Bb3
{[%clk 0:00:10.8]} 101... Nc5 {[%clk 0:02:25.3]} 102. Bg8 {[%clk 0:00:10.3]}
102... Nxe4 {[%clk 0:02:20.2]} 103. Bxh7 {[%clk 0:00:08.4]} 103... Kf7 {[%clk
0:02:21]} 104. Kh4 {[%clk 0:00:09.2]} 104... Nc5 {[%clk 0:02:13.5]} 105. Kg4
{[%clk 0:00:09.8]} 105... Ne6 {[%clk 0:02:14.6]} 106. Kf3 {[%clk 0:00:07.5]}
106... Nxg5+ {[%clk 0:02:14.9]} 107. Kg4 {[%clk 0:00:05.6]} 107... Nxh7 {[%clk
0:02:15.6]} 108. Kf3 {[%clk 0:00:06.5]} 108... Nf6 {[%clk 0:02:15.8]} 109. Ke3
{[%clk 0:00:07.6]} 109... g5 {[%clk 0:02:15.9]} 0-1

[Event "GrandPrix_30.05"]
[Site "Chess.com"]
[Date "2020.05.30"]
[Round "3"]
[White "Onischuk_V"]
[Black "VerdeNotte"]
[Result "1/2-1/2"]
[WhiteElo "2508"]
[BlackElo "2730"]
[TimeControl "600+2"]
[EndTime "9:27:08 PDT"]
[Termination "Game drawn by repetition"]

1. e4 {[%clk 0:09:59.3]} 1... c5 {[%clk 0:09:58.8]} 2. Nf3 {[%clk 0:09:59]} 2...
d6 {[%clk 0:09:59.8]} 3. d4 {[%clk 0:09:58.3]} 3... cxd4 {[%clk 0:10:00.6]} 4.
Nxd4 {[%clk 0:09:59]} 4... Nf6 {[%clk 0:09:59.7]} 5. Nc3 {[%clk 0:09:59.5]} 5...
g6 {[%clk 0:10:00.6]} 6. g3 {[%clk 0:09:58.1]} 6... Nc6 {[%clk 0:09:59.6]} 7.
Bg2 {[%clk 0:09:59]} 7... Nxd4 {[%clk 0:09:57.5]} 8. Qxd4 {[%clk 0:09:59.8]}
8... Bg7 {[%clk 0:09:58.8]} 9. e5 {[%clk 0:10:01]} 9... Ng4 {[%clk 0:09:48.1]}
10. f4 {[%clk 0:09:56.9]} 10... Nh6 {[%clk 0:09:25.9]} 11. h3 {[%clk 0:09:26.1]}
11... Nf5 {[%clk 0:09:18.6]} 12. Qf2 {[%clk 0:09:26.5]} 12... dxe5 {[%clk
0:09:11.3]} 13. g4 {[%clk 0:09:26.7]} 13... Nd6 {[%clk 0:08:29.1]} 14. O-O
{[%clk 0:09:02.7]} 14... Be6 {[%clk 0:07:37.4]} 15. fxe5 {[%clk 0:06:57.5]}
15... Bxe5 {[%clk 0:07:36.3]} 16. Re1 {[%clk 0:06:58.6]} 16... Bg7 {[%clk
0:07:05.3]} 17. Bf4 {[%clk 0:05:58.4]} 17... O-O {[%clk 0:06:38.3]} 18. Rad1
{[%clk 0:05:58.5]} 18... Qb6 {[%clk 0:06:04.4]} 19. Nd5 {[%clk 0:05:47.2]} 19...
Bxd5 {[%clk 0:05:47.7]} 20. Bxd5 {[%clk 0:05:40.4]} 20... Qxf2+ {[%clk
0:04:44.8]} 21. Kxf2 {[%clk 0:05:39.9]} 21... Rfe8 {[%clk 0:04:24.4]} 22. c4
{[%clk 0:04:52.8]} 22... Rac8 {[%clk 0:03:55.6]} 23. b3 {[%clk 0:04:34.5]} 23...
b6 {[%clk 0:03:42.2]} 24. Re2 {[%clk 0:04:24.9]} 24... Bf6 {[%clk 0:03:13]} 25.
Kg2 {[%clk 0:04:01.7]} 25... e5 {[%clk 0:01:46.8]} 26. Bc1 {[%clk 0:03:45.9]}
26... e4 {[%clk 0:01:28.1]} 27. Ba3 {[%clk 0:03:25]} 27... Be5 {[%clk
0:01:28.8]} 28. Bxd6 {[%clk 0:01:16.8]} 28... Bxd6 {[%clk 0:01:28.9]} 29. Bxf7+
{[%clk 0:01:18.3]} 29... Kxf7 {[%clk 0:01:29.9]} 30. Rxd6 {[%clk 0:01:19.8]}
30... Re7 {[%clk 0:01:15.1]} 31. Kf2 {[%clk 0:01:20.3]} 31... b5 {[%clk
0:00:51]} 32. cxb5 {[%clk 0:01:20.9]} 32... Rc3 {[%clk 0:00:50.3]} 33. Kg2
{[%clk 0:01:21.7]} 33... h5 {[%clk 0:00:38.4]} 34. gxh5 {[%clk 0:01:08.5]} 34...
gxh5 {[%clk 0:00:40.3]} 35. Rd4 {[%clk 0:01:09.6]} 35... e3 {[%clk 0:00:40.4]}
36. Kf3 {[%clk 0:01:08.4]} 36... Re5 {[%clk 0:00:27.3]} 37. Ra4 {[%clk 0:00:49]}
37... Kf6 {[%clk 0:00:19]} 38. Rxa7 {[%clk 0:00:43.4]} 38... Rf5+ {[%clk
0:00:15.6]} 39. Ke4 {[%clk 0:00:43]} 39... Rxb5 {[%clk 0:00:16.2]} 40. Ra6+
{[%clk 0:00:24.7]} 40... Kg5 {[%clk 0:00:16.3]} 41. Kf3 {[%clk 0:00:11.5]} 41...
Kh4 {[%clk 0:00:11.7]} 42. Kg2 {[%clk 0:00:12.5]} 42... Rg5+ {[%clk 0:00:11.1]}
43. Kh2 {[%clk 0:00:13.5]} 43... Rf5 {[%clk 0:00:07.8]} 44. Ra4+ {[%clk
0:00:14.2]} 44... Kg5 {[%clk 0:00:09.2]} 45. Kg2 {[%clk 0:00:14.1]} 45... Rf4
{[%clk 0:00:09.3]} 46. Ra5+ {[%clk 0:00:08.8]} 46... Kh4 {[%clk 0:00:06.9]} 47.
Re5 {[%clk 0:00:10.2]} 47... Rf2+ {[%clk 0:00:06.5]} 48. Rxf2 {[%clk 0:00:10.9]}
48... exf2 {[%clk 0:00:08.4]} 49. Kxf2 {[%clk 0:00:11.9]} 49... Rc2+ {[%clk
0:00:08.8]} 50. Re2 {[%clk 0:00:12.5]} 50... Rc1 {[%clk 0:00:06.7]} 51. Kg2
{[%clk 0:00:12.3]} 51... Ra1 {[%clk 0:00:05.2]} 52. Re4+ {[%clk 0:00:11.7]}
52... Kg5 {[%clk 0:00:06.7]} 53. Ra4 {[%clk 0:00:13.3]} 53... h4 {[%clk
0:00:05.7]} 54. Kf3 {[%clk 0:00:10.4]} 54... Rf1+ {[%clk 0:00:06.3]} 55. Ke2
{[%clk 0:00:11.1]} 55... Rh1 {[%clk 0:00:06.9]} 56. b4 {[%clk 0:00:11.6]} 56...
Rxh3 {[%clk 0:00:04.4]} 57. Ra8 {[%clk 0:00:09.2]} 57... Kf4 {[%clk 0:00:03.9]}
58. Rf8+ {[%clk 0:00:08.6]} 58... Ke4 {[%clk 0:00:05.2]} 59. Re8+ {[%clk
0:00:08]} 59... Kd4 {[%clk 0:00:06.6]} 60. Ra8 {[%clk 0:00:05.8]} 60... Kc4
{[%clk 0:00:07.3]} 61. a3 {[%clk 0:00:06.6]} 61... Rb3 {[%clk 0:00:08.2]} 62.
Kf2 {[%clk 0:00:07.4]} 62... h3 {[%clk 0:00:09.1]} 63. Ra5 {[%clk 0:00:06.2]}
63... h2 {[%clk 0:00:06.3]} 64. Kg2 {[%clk 0:00:07.4]} 64... Rb2+ {[%clk
0:00:07.6]} 65. Kh1 {[%clk 0:00:08.9]} 65... Ra2 {[%clk 0:00:08.5]} 66. b5
{[%clk 0:00:08.8]} 66... Rb2 {[%clk 0:00:05.5]} 67. a4 {[%clk 0:00:09.5]} 67...
Kd5 {[%clk 0:00:02.7]} 68. Ra6 {[%clk 0:00:10]} 68... Kc5 {[%clk 0:00:02.9]} 69.
Rc6+ {[%clk 0:00:08.9]} 69... Kd5 {[%clk 0:00:04.3]} 70. Rc8 {[%clk 0:00:08.1]}
70... Rb4 {[%clk 0:00:05]} 71. Ra8 {[%clk 0:00:08.6]} 71... Rb2 {[%clk
0:00:06.3]} 72. Ra6 {[%clk 0:00:08.7]} 72... Kc5 {[%clk 0:00:07.7]} 73. Rh6
{[%clk 0:00:08.9]} 73... Ra2 {[%clk 0:00:07.2]} 74. Rh4 {[%clk 0:00:09.1]} 74...
Kb6 {[%clk 0:00:07.6]} 75. Rh6+ {[%clk 0:00:08.9]} 75... Kc5 {[%clk 0:00:08.9]}
76. Rc6+ {[%clk 0:00:09.7]} 76... Kd5 {[%clk 0:00:09.9]} 77. Ra6 {[%clk
0:00:10.9]} 77... Kc5 {[%clk 0:00:11.3]} 78. b6 {[%clk 0:00:12]} 78... Kc6
{[%clk 0:00:06.4]} 79. a5 {[%clk 0:00:12.6]} 79... Kb7 {[%clk 0:00:07.6]} 80.
Ra7+ {[%clk 0:00:13.4]} 80... Kb8 {[%clk 0:00:08.8]} 81. a6 {[%clk 0:00:10.4]}
81... Rb2 {[%clk 0:00:10]} 82. Rb7+ {[%clk 0:00:11.2]} 82... Ka8 {[%clk
0:00:11.3]} 83. Ra7+ {[%clk 0:00:11.2]} 83... Kb8 {[%clk 0:00:12.2]} 84. Rb7+
{[%clk 0:00:12.5]} 84... Ka8 {[%clk 0:00:13.5]} 85. Ra7+ {[%clk 0:00:11.9]}
85... Kb8 {[%clk 0:00:14.7]} 1/2-1/2

[Event "GrandPrix_30.05"]
[Site "Chess.com"]
[Date "2020.05.30"]
[Round "3"]
[White "Rakhmanov_Aleksandr"]
[Black "Funo09"]
[Result "0-1"]
[WhiteElo "2435"]
[BlackElo "2681"]
[TimeControl "600+2"]
[EndTime "9:27:10 PDT"]
[Termination "Funo09 won on time"]

1. d4 {[%clk 0:10:01.9]} 1... Nf6 {[%clk 0:10:00.7]} 2. c4 {[%clk 0:10:00.6]}
2... Nc6 {[%clk 0:10:01.8]} 3. Nf3 {[%clk 0:09:54.9]} 3... e6 {[%clk 0:10:02.4]}
4. Nc3 {[%clk 0:09:54]} 4... Bb4 {[%clk 0:10:02.8]} 5. Bd2 {[%clk 0:09:54.7]}
5... d6 {[%clk 0:10:00.6]} 6. e3 {[%clk 0:09:55.6]} 6... O-O {[%clk 0:10:00.1]}
7. a3 {[%clk 0:09:53.2]} 7... Bxc3 {[%clk 0:10:00.4]} 8. Bxc3 {[%clk 0:09:55.1]}
8... a5 {[%clk 0:09:59]} 9. Qc2 {[%clk 0:09:49.4]} 9... Qe7 {[%clk 0:09:55.1]}
10. Be2 {[%clk 0:09:46]} 10... a4 {[%clk 0:09:38.7]} 11. O-O {[%clk 0:09:35]}
11... e5 {[%clk 0:09:37.8]} 12. dxe5 {[%clk 0:09:24]} 12... dxe5 {[%clk
0:09:36.3]} 13. h3 {[%clk 0:09:25.4]} 13... Nd7 {[%clk 0:09:02.9]} 14. Rad1
{[%clk 0:07:59.2]} 14... Nc5 {[%clk 0:08:47.3]} 15. Bb4 {[%clk 0:07:17.5]} 15...
Nxb4 {[%clk 0:07:26.8]} 16. axb4 {[%clk 0:07:19.4]} 16... Nb3 {[%clk 0:07:28.3]}
17. Qe4 {[%clk 0:06:52.4]} 17... f6 {[%clk 0:06:20.5]} 18. c5 {[%clk 0:06:35.5]}
18... Ra7 {[%clk 0:04:51.9]} 19. Bc4+ {[%clk 0:05:41.5]} 19... Be6 {[%clk
0:04:52]} 20. Qg4 {[%clk 0:03:59.8]} 20... Bxc4 {[%clk 0:03:52.2]} 21. Qxc4+
{[%clk 0:03:21.1]} 21... Kh8 {[%clk 0:03:25.8]} 22. Qg4 {[%clk 0:02:38.7]} 22...
f5 {[%clk 0:02:40.6]} 23. Qg5 {[%clk 0:02:27.6]} 23... Qe6 {[%clk 0:02:32.5]}
24. Qd8 {[%clk 0:01:20.5]} 24... Ra8 {[%clk 0:01:17]} 25. Qxc7 {[%clk
0:01:19.8]} 25... e4 {[%clk 0:01:18.5]} 26. Nd4 {[%clk 0:00:18.9]} 26... Nxd4
{[%clk 0:01:19.4]} 27. Rxd4 {[%clk 0:00:20.8]} 27... Qb3 {[%clk 0:01:21]} 28.
Rd7 {[%clk 0:00:14.7]} 28... Qxb2 {[%clk 0:01:21.9]} 29. Qxb7 {[%clk 0:00:09.7]}
29... a3 {[%clk 0:01:23.1]} 30. Rfd1 {[%clk 0:00:06.3]} 30... h6 {[%clk
0:01:20.3]} 31. R1d4 {[%clk 0:00:05.7]} 31... Rab8 {[%clk 0:00:57.7]} 32. Qc7
{[%clk 0:00:04]} 32... a2 {[%clk 0:00:33.5]} 33. Rxg7 {[%clk 0:00:04.2]} 33...
a1=Q+ {[%clk 0:00:34.8]} 34. Kh2 {[%clk 0:00:04.3]} 34... Qxd4 {[%clk
0:00:36.3]} 35. exd4 {[%clk 0:00:04.4]} 35... Qxd4 {[%clk 0:00:38.2]} 36. Rh7+
{[%clk 0:00:04.6]} 36... Kg8 {[%clk 0:00:39.2]} 37. Rd7 {[%clk 0:00:04]} 37...
Qf6 {[%clk 0:00:37.3]} 38. Rd6 {[%clk 0:00:03.6]} 38... Qg7 {[%clk 0:00:33.2]}
39. Qc6 {[%clk 0:00:03.7]} 39... Qe5+ {[%clk 0:00:24.2]} 40. g3 {[%clk 0:00:04]}
40... Rf7 {[%clk 0:00:13.1]} 41. Re6 {[%clk 0:00:05.2]} 41... Qd4 {[%clk
0:00:12.3]} 42. Rg6+ {[%clk 0:00:05.3]} 42... Kf8 {[%clk 0:00:12.8]} 43. Kg2
{[%clk 0:00:04.5]} 43... e3 {[%clk 0:00:13.6]} 44. fxe3 {[%clk 0:00:04.8]} 44...
Qd2+ {[%clk 0:00:13.9]} 45. Kf3 {[%clk 0:00:05.8]} 45... Qd1+ {[%clk 0:00:14.1]}
46. Kf2 {[%clk 0:00:07.2]} 46... Qc2+ {[%clk 0:00:14.6]} 47. Ke1 {[%clk
0:00:07.3]} 47... Qb1+ {[%clk 0:00:14.2]} 48. Kf2 {[%clk 0:00:08.6]} 48... Qc2+
{[%clk 0:00:09.7]} 49. Ke1 {[%clk 0:00:08.8]} 49... Qc1+ {[%clk 0:00:10.9]} 50.
Kf2 {[%clk 0:00:09.1]} 50... Qd2+ {[%clk 0:00:12]} 51. Kf3 {[%clk 0:00:10.5]}
51... Rd8 {[%clk 0:00:11.2]} 52. Rd6 {[%clk 0:00:11.6]} 52... Rxd6 {[%clk
0:00:11.2]} 53. cxd6 {[%clk 0:00:13.3]} 53... Qd1+ {[%clk 0:00:12.6]} 54. Kf4
{[%clk 0:00:12.5]} 54... Qf1+ {[%clk 0:00:11.5]} 55. Ke5 {[%clk 0:00:13.1]}
55... Qa1+ {[%clk 0:00:13]} 56. Ke6 {[%clk 0:00:13]} 56... Qf6+ {[%clk
0:00:11.6]} 57. Kd5 {[%clk 0:00:14.3]} 57... Kg7 {[%clk 0:00:11.6]} 58. b5
{[%clk 0:00:13.7]} 58... Qb2 {[%clk 0:00:09.5]} 59. b6 {[%clk 0:00:12.7]} 59...
Qd2+ {[%clk 0:00:10]} 60. Kc5 {[%clk 0:00:14]} 60... Qxe3+ {[%clk 0:00:11.2]}
61. Kb5 {[%clk 0:00:15.4]} 61... Qe5+ {[%clk 0:00:10.8]} 62. Qc5 {[%clk
0:00:13.7]} 62... Qxg3 {[%clk 0:00:10.6]} 63. Qd4+ {[%clk 0:00:13.1]} 63... Kg6
{[%clk 0:00:11.9]} 64. d7 {[%clk 0:00:13.8]} 64... Qb3+ {[%clk 0:00:13.3]} 65.
Kc6 {[%clk 0:00:14.7]} 65... Qc2+ {[%clk 0:00:08.8]} 66. Kb5 {[%clk 0:00:14.8]}
66... Qe2+ {[%clk 0:00:07.7]} 67. Ka5 {[%clk 0:00:12.8]} 67... Qa2+ {[%clk
0:00:05.1]} 68. Kb5 {[%clk 0:00:12.8]} 68... Qb1+ {[%clk 0:00:06.1]} 69. Ka5
{[%clk 0:00:12.6]} 69... Qe1+ {[%clk 0:00:06.7]} 70. Kb5 {[%clk 0:00:12.3]}
70... Qe2+ {[%clk 0:00:07.3]} 71. Ka5 {[%clk 0:00:12.5]} 71... f4 {[%clk
0:00:03.7]} 72. Qd6+ {[%clk 0:00:09.6]} 72... Kh7 {[%clk 0:00:03.6]} 73. d8=Q
{[%clk 0:00:09.7]} 73... Rf5+ {[%clk 0:00:03.9]} 74. Kb4 {[%clk 0:00:05.4]}
74... Rb5+ {[%clk 0:00:05]} 75. Kc3 {[%clk 0:00:03.4]} 75... Qb2+ {[%clk
0:00:06.4]} 76. Kd3 {[%clk 0:00:04.1]} 76... Rb3+ {[%clk 0:00:07.1]} 77. Ke4
{[%clk 0:00:05.4]} 77... Re3+ {[%clk 0:00:06]} 78. Kf5 {[%clk 0:00:06]} 78...
Qc2+ {[%clk 0:00:06]} 79. Kg4 {[%clk 0:00:05.6]} 79... Qg2+ {[%clk 0:00:04.5]}
0-1